fUST/lending_fUST_20250621
["ID","MTS","AMOUNT","RATE_DAILY","PERIOD"]
[366843136,1750504038057,-1200.0,0.00024581,2]
[366843137,1750504038078,-1521.50073407,0.00024636,2]
[366843138,1750504038098,-138468.30478414,0.0002465,2]
[366843139,1750504038119,-300.44671069,0.0002465,2]
[366843140,1750504038139,-151.0,0.0002465,7]
[366843141,1750504038160,-300.0,0.00024657,4]
[366843142,1750504038181,-300.0,0.00024657,4]
[366843143,1750504038201,-274.53411993,0.00024657,4]
[366843144,1750504038221,-1000.0,0.00024658,2]
[366843145,1750504038241,-1000.0,0.00024658,2]
[366843146,1750504038261,-1000.0,0.00024658,2]
[366843147,1750504038280,-1000.0,0.00024658,2]
[366843148,1750504038301,-1000.0,0.00024658,2]
[366843149,1750504038321,-1000.0,0.00024658,2]
[366843150,1750504038341,-1000.0,0.00024658,2]
[366843151,1750504038366,-1000.0,0.00024658,2]
[366843152,1750504038386,-1000.0,0.00024658,2]
[366843153,1750504038408,-1000.0,0.00024658,2]
[366843154,1750504038429,-1000.0,0.00024658,2]
[366843155,1750504038454,-1000.0,0.00024658,2]
[366843156,1750504038477,-1000.0,0.00024658,2]
[366843157,1750504038503,-1000.0,0.00024658,2]
[366843158,1750504038524,-1000.0,0.00024658,2]
[366843159,1750504038546,-1000.0,0.00024658,2]
[366843160,1750504038568,-1000.0,0.00024658,2]
[366843161,1750504038589,-1000.0,0.00024658,2]
[366843162,1750504038610,-1000.0,0.00024658,2]
[366843163,1750504038631,-1000.0,0.00024658,2]
[366843164,1750504038652,-1000.0,0.00024658,2]
[366843165,1750504038674,-1000.0,0.00024658,2]
[366843166,1750504038695,-1000.0,0.00024658,2]
[366843167,1750504038718,-1000.0,0.00024658,2]
[366843168,1750504038740,-1000.0,0.00024658,2]
[366843169,1750504038763,-1000.0,0.00024658,2]
[366843170,1750504038784,-561.36687666,0.00024658,2]
[366843171,1750504129664,196.42064208,0.00017863,3]
[366843198,1750504232139,-5000.0,0.00021719,2]
[366843200,1750504232149,-300.0,0.00021938,2]
[366843202,1750504232158,-587.47425374,0.00021939,2]
[366843204,1750504232167,-498.83232043,0.00021939,2]
[366843206,1750504232177,-586.46,0.00021939,2]
[366843208,1750504232186,-478.4042848,0.00021939,2]
[366843210,1750504232196,-572.86,0.00021939,2]
[366843212,1750504232205,-469.58727695,0.00021939,2]
[366843214,1750504232214,-460.0,0.00021939,2]
[366843216,1750504232223,-201.86525486,0.00021939,2]
[366843218,1750504232233,-535.49,0.00021939,2]
[366843220,1750504232242,-433.4444573,0.00021939,2]
[366843222,1750504232251,-472.60810396,0.00021939,2]
[366843224,1750504232260,-480.22632414,0.00021939,2]
[366843226,1750504232269,-460.0,0.00021939,2]
[366843228,1750504232279,-462.1,0.00021939,2]
[366843230,1750504232288,-126.90002318,0.00021939,2]
[366843232,1750504232301,-333.09997682,0.00021939,2]
[366843234,1750504232310,-460.0,0.00021939,2]
[366843236,1750504232320,-470.02616504,0.00021939,2]
[366843238,1750504232330,-460.0,0.00021939,2]
[366843240,1750504232339,-493.82496553,0.00021939,2]
[366843242,1750504232349,-472.69138868,0.00021939,2]
[366843244,1750504232358,-359.25394013,0.00021939,2]
[366843246,1750504232368,-588.29633451,0.00021939,2]
[366843248,1750504232377,-451.09463584,0.00021939,2]
[366843250,1750504232389,-20.12973829,0.00021939,2]
[366843252,1750504232398,-494.94564393,0.00021939,2]
[366843254,1750504232408,-427.5433528,0.00021939,2]
[366843256,1750504232418,-480.35123389,0.00021939,2]
[366843258,1750504232428,-460.0,0.00021939,2]
[366843260,1750504232437,-160.0,0.00022162,2]
[366843263,1750504232452,-185.27,0.00022213,2]
[366843265,1750504232466,-460.0,0.00022213,2]
[366843267,1750504232477,-35.15920459,0.00022213,2]
[366843443,1750504238262,-384.83079541,0.00022213,2]
[366843444,1750504238272,-192.27043436,0.00022213,2]
[366843731,1750504248965,-267.72956564,0.00022213,2]
[366843733,1750504248974,-366.0,0.000224,3]
[366843735,1750504248984,-324.03,0.00022487,2]
[366843737,1750504248994,-290.51,0.00022487,2]
[366843739,1750504249003,-471.27838196,0.00022729,2]
[366843741,1750504249013,-466.14924826,0.00022729,2]
[366843743,1750504249022,-231.43900874,0.00022729,2]
[366843745,1750504249032,-244.54806973,0.000229,8]
[366843747,1750504249041,-244.54806963,0.00023003,8]
[366843749,1750504249051,-244.54806963,0.00023107,8]
[366843751,1750504249060,-244.54806963,0.0002321,8]
[366843753,1750504249070,-244.54806963,0.00023314,9]
[366843755,1750504249079,-500.0,0.00023417,2]
[366843757,1750504249089,-244.54806963,0.00023417,9]
[366843759,1750504249098,-4720.46,0.0002343,2]
[366843761,1750504249107,-244.54806963,0.00023521,9]
[366843763,1750504249117,-500.0,0.00023598,2]
[366843765,1750504249126,-150.56730789,0.00023624,9]
[366843925,1750504530882,200.0,0.00024115,120]
[366843926,1750504731406,-5000.0,0.0002162,2]
[366843927,1750504809971,2000.0,0.00022248,120]
[366843939,1750505237096,-1836.95555468,0.00021178,2]
[366843940,1750505248156,-3163.04444532,0.00021178,2]
[366843941,1750505248179,-160.0,0.00021588,2]
[366843942,1750505248199,-160.0,0.00022141,2]
[366843943,1750505248219,-160.0,0.00022212,2]
[366843944,1750505248240,-424.93363889,0.00022212,2]
[366843945,1750505248261,-300.0,0.00022223,2]
[366843946,1750505248281,-300.0,0.00022224,2]
[366843947,1750505248302,-300.0,0.00022224,2]
[366843948,1750505248322,-846.23824438,0.00022225,2]
[366843949,1750505248342,-213.55395994,0.00022225,2]
[366843950,1750505248363,-160.0,0.00022225,2]
[366843951,1750505248383,-836.41202323,0.00022225,2]
[366843952,1750505248405,-160.0,0.00022225,2]
[366843953,1750505248426,-160.0,0.00022225,2]
[366843954,1750505248447,-354.76571441,0.0002235,2]
[366843955,1750505248468,-219.53956114,0.00022708,2]
[366843956,1750505248491,-500.0,0.0002272,2]
[366843957,1750505248512,-500.0,0.0002272,2]
[366843958,1750505248536,-500.0,0.0002272,2]
[366843959,1750505248659,-500.0,0.0002272,2]
[366843960,1750505248684,-606.77958587,0.0002272,2]
[366843961,1750505248706,-475.643283,0.0002272,2]
[366843962,1750505248727,-4814.58535612,0.00022721,2]
[366843963,1750505248747,-1702.26966114,0.00022721,2]
[366843964,1750505248767,-207.4,0.00022721,2]
[366843965,1750505248787,-199.86066517,0.00022729,2]
[366843966,1750505248815,-324.43879055,0.000229,8]
[366843967,1750505248841,-324.43879051,0.00023003,8]
[366843968,1750505248868,-324.43879051,0.00023107,8]
[366843969,1750505248888,-300.0,0.00023182,2]
[366843970,1750505248916,-324.43879051,0.0002321,8]
[366843971,1750505248936,-500.0,0.00023217,2]
[366843972,1750505248957,-285.15729364,0.00023242,2]
[366843973,1750505248978,-500.0,0.00023247,2]
[366843974,1750505249006,-324.43879051,0.00023314,9]
[366843975,1750505249027,-480.6270167,0.0002337,2]
[366843976,1750505249051,-460.0,0.00023393,2]
[366843977,1750505249072,-460.0,0.00023393,2]
[366843978,1750505249094,-519.7,0.00023393,2]
[366843979,1750505249115,-184.126,0.00023393,3]
[366843980,1750505249135,-490.6215398,0.00023393,2]
[366843981,1750505249159,-460.0,0.00023393,2]
[366843982,1750505249180,-467.66178195,0.00023393,2]
[366843983,1750505249203,-460.0,0.00023393,2]
[366843984,1750505249223,-583.05103659,0.00023393,2]
[366843985,1750505249249,-4671.04,0.00023394,2]
[366843986,1750505249277,-324.43879051,0.00023417,9]
[366843987,1750505249297,-208.63014359,0.00023421,2]
[366843988,1750505249318,-500.0,0.00023503,2]
[366843989,1750505249346,-324.43879051,0.00023521,9]
[366843990,1750505249373,-324.43879051,0.00023624,9]
[366843991,1750505249396,-460.0,0.00023667,2]
[366843992,1750505249418,-460.0,0.00023667,2]
[366843993,1750505249440,-434.58,0.00023667,2]
[366843994,1750505249471,-324.43879051,0.00023728,9]
[366843995,1750505249503,-324.43879051,0.00023831,10]
[366843996,1750505249530,-324.43879051,0.00023934,10]
[366843997,1750505249552,-199.06205243,0.00023941,2]
[366843998,1750505249573,-460.0,0.00023941,2]
[366843999,1750505249594,-433.86001516,0.00023999,2]
[366844000,1750505249613,-150.0,0.00024,2]
[366844001,1750505249634,-523.9660634,0.00024,3]
[366844002,1750505249654,-965.0,0.00024033,2]
[366844003,1750505249674,-2160.0,0.00024033,2]
[366844004,1750505249694,-654.0,0.00024033,2]
[366844005,1750505249715,-406.0,0.00024033,2]
[366844006,1750505249742,-324.43879051,0.00024038,10]
[366844007,1750505249764,-967.86075019,0.00024065,2]
[366844008,1750505249786,-215.0738,0.0002409,2]
[366844009,1750505249806,-155.0,0.00024115,2]
[366844010,1750505249833,-324.43879051,0.00024141,10]
[366844011,1750505249855,-420.0,0.00024144,2]
[366844012,1750505249876,-329.103536,0.00024164,4]
[366844013,1750505249898,-460.0,0.00024215,2]
[366844014,1750505249919,-168.0,0.00024266,2]
[366844015,1750505249938,-2000.0,0.000243,2]
[366844016,1750505249965,-324.43879051,0.00024348,11]
[366844017,1750505249997,-324.43879051,0.00024452,11]
[366844018,1750505250024,-460.0,0.00024489,2]
[366844019,1750505250055,-324.43879051,0.00024555,11]
[366844020,1750505250079,-186.82923385,0.0002458,2]
[366844021,1750505250101,-186.82923384,0.00024636,2]
[366844022,1750505250127,-500.0,0.00024652,2]
[366844023,1750505250150,-215.0528134,0.00024652,2]
[366844024,1750505250179,-500.0,0.00024652,2]
[366844025,1750505250205,-500.0,0.00024652,2]
[366844026,1750505250230,-500.0,0.00024652,2]
[366844027,1750505250258,-500.0,0.00024652,2]
[366844028,1750505250283,-500.0,0.00024652,2]
[366844029,1750505250309,-500.0,0.00024652,2]
[366844030,1750505250337,-500.0,0.00024652,2]
[366844031,1750505250363,-500.0,0.00024652,2]
[366844032,1750505250388,-500.0,0.00024652,2]
[366844033,1750505250413,-500.0,0.00024652,2]
[366844034,1750505250441,-500.0,0.00024652,2]
[366844035,1750505250467,-500.0,0.00024652,2]
[366844036,1750505250494,-500.0,0.00024652,2]
[366844037,1750505250520,-500.0,0.00024652,2]
[366844038,1750505250546,-500.0,0.00024652,2]
[366844039,1750505250572,-500.0,0.00024652,2]
[366844040,1750505250596,-500.0,0.00024652,2]
[366844041,1750505250620,-500.0,0.00024652,2]
[366844042,1750505250646,-500.0,0.00024652,2]
[366844043,1750505250672,-500.0,0.00024652,2]
[366844044,1750505250698,-500.0,0.00024652,2]
[366844045,1750505250723,-349.28194061,0.00024652,2]
[366844046,1750505250749,-500.0,0.00024652,2]
[366844047,1750505250774,-500.0,0.00024652,2]
[366844048,1750505250801,-500.0,0.00024652,2]
[366844049,1750505250827,-500.0,0.00024652,2]
[366844050,1750505250855,-500.0,0.00024652,2]
[366844051,1750505250879,-438.63312334,0.00024658,2]
[366844052,1750505250900,-1000.0,0.00024658,2]
[366844053,1750505250924,-1000.0,0.00024658,2]
[366844054,1750505250947,-1000.0,0.00024658,2]
[366844055,1750505250970,-1000.0,0.00024658,2]
[366844056,1750505250995,-1000.0,0.00024658,2]
[366844057,1750505251018,-1000.0,0.00024658,2]
[366844058,1750505251039,-1000.0,0.00024658,2]
[366844059,1750505251060,-1000.0,0.00024658,2]
[366844060,1750505251082,-1000.0,0.00024658,2]
[366844061,1750505251105,-1000.0,0.00024658,2]
[366844062,1750505251128,-1000.0,0.00024658,2]
[366844063,1750505251150,-1000.0,0.00024658,2]
[366844064,1750505251187,-1000.0,0.00024658,2]
[366844065,1750505251210,-1000.0,0.00024658,2]
[366844066,1750505251231,-1000.0,0.00024658,2]
[366844067,1750505251253,-1000.0,0.00024658,2]
[366844068,1750505251276,-633.0,0.00024658,2]
[366844069,1750505251298,-380.0,0.00024658,2]
[366844070,1750505251320,-200.0,0.00024658,2]
[366844071,1750505251344,-463.70726757,0.00024658,2]
[366844072,1750505251366,-500.0,0.00024658,2]
[366844073,1750505251396,-324.43879051,0.00024659,11]
[366844074,1750505251543,-500.0,0.00024659,7]
[366844075,1750505251565,-37020.46114886,0.0002466,2]
[366844076,1750505251587,-160.0,0.00024664,2]
[366844077,1750505251608,-500.0,0.00024673,2]
[366844078,1750505251630,-500.0,0.00024673,2]
[366844079,1750505251652,-500.0,0.00024673,2]
[366844080,1750505251673,-500.0,0.00024673,2]
[366844081,1750505251695,-500.0,0.00024673,2]
[366844082,1750505251716,-500.0,0.00024673,2]
[366844083,1750505251736,-500.0,0.00024673,2]
[366844084,1750505251757,-500.0,0.00024673,2]
[366844085,1750505251778,-500.0,0.00024673,2]
[366844086,1750505251799,-500.0,0.00024673,2]
[366844087,1750505251820,-579.6336408,0.00024673,2]
[366844088,1750505251842,-500.0,0.00024673,2]
[366844089,1750505251862,-441.71717112,0.00024673,2]
[366844090,1750505251884,-600.0,0.00024673,2]
[366844091,1750505251905,-500.0,0.00024673,2]
[366844092,1750505251924,-500.0,0.00024673,2]
[366844093,1750505251945,-500.0,0.00024673,2]
[366844094,1750505251965,-504.6434671,0.00024673,2]
[366844095,1750505251986,-202.87194491,0.00024673,2]
[366844096,1750505252008,-500.0,0.00024673,2]
[366844097,1750505252028,-111467.87654627,0.0002468,2]
[366844098,1750505253164,-500.0,0.00023411,2]
[366844099,1750505253190,-500.0,0.00023904,2]
[366844100,1750505253212,-523.9660634,0.00024,3]
[366844101,1750505253235,-500.0,0.00024133,2]
[366844102,1750505253257,-547.90944606,0.0002451,2]
[366844103,1750505253280,-92009.76400354,0.0002468,2]
[366844104,1750505312719,-168.23,0.0002,2]
[366844105,1750505345184,-300.0,0.00019999,2]
[366844106,1750505345203,-6385.01294797,0.0002,2]
[366844107,1750505345223,-14899.21576981,0.0002,2]
[366844108,1750505345242,-7054.40371199,0.0002,7]
[366844109,1750505348086,-719.64742153,0.0002,7]
[366844175,1750505432540,-230.10342898,0.00022225,2]
[366844177,1750505432550,-88.19301867,0.000225,2]
[366844188,1750505432643,-915.05613927,0.000225,2]
[366844190,1750505432652,-460.0,0.00022899,2]
[366844192,1750505432662,-300.0,0.0002295,2]
[366844194,1750505432672,-8834.01491773,0.00022951,2]
[366844196,1750505432683,-6088.57632179,0.00022951,2]
[366844198,1750505432696,-1057.8,0.00022951,2]
[366844315,1750505438214,-500.0,0.0002295,2]
[366844316,1750505438223,-500.0,0.0002295,2]
[366844317,1750505438233,-500.0,0.0002295,2]
[366844318,1750505438242,-500.0,0.0002295,2]
[366844319,1750505438251,-500.0,0.0002295,2]
[366844320,1750505438260,-509.48855318,0.0002295,2]
[366844321,1750505438269,-500.0,0.0002295,2]
[366844322,1750505438279,-500.0,0.0002295,2]
[366844323,1750505438287,-500.0,0.0002295,2]
[366844324,1750505438296,-500.0,0.0002295,2]
[366844325,1750505438306,-500.0,0.0002295,2]
[366844326,1750505438315,-178.5310651,0.0002295,2]
[366844327,1750505438325,-500.0,0.0002295,2]
[366844328,1750505438334,-73124.04476294,0.00022951,2]
[366844329,1750505438343,-160.0,0.00023172,2]
[366844330,1750505438352,-424.93363889,0.00023172,2]
[366844331,1750505438361,-460.0,0.00023173,2]
[366844332,1750505438370,-4611.6,0.00023409,2]
[366844333,1750505438380,-460.0,0.00023447,2]
[366844334,1750505438389,-499.99999901,0.0002358,2]
[366844335,1750505438399,-323.44,0.00023721,2]
[366844336,1750505438408,-168.23,0.00023778,3]
[366844337,1750505438417,-545.34,0.00023778,10]
[366844338,1750505438426,-25749.86410068,0.00023788,2]
[366844339,1750505438436,-200.84306083,0.000239,10]
[366844340,1750505438445,-500.0,0.00023973,2]
[366844341,1750505438456,-600.0,0.00023973,2]
[366844342,1750505438465,-500.0,0.00023973,2]
[366844343,1750505438475,-28416.0479497,0.00024,30]
[366844344,1750505438484,-76764.59273443,0.00024,2]
[366844345,1750505438493,-150.0,0.00024,2]
[366844346,1750505438502,-200.84306079,0.00024,10]
[366844347,1750505438512,-12549.17366507,0.00024,30]
[366844348,1750505438521,-200.84306079,0.000241,10]
[366844349,1750505438531,-282.088745,0.00024186,4]
[366844350,1750505438543,-200.84306079,0.000242,10]
[366844351,1750505438553,-200.84306079,0.000243,10]
[366844352,1750505438562,-200.84306079,0.000244,11]
[366844353,1750505438574,-4201.69983347,0.00024433,2]
[366844354,1750505438583,-200.84306079,0.000245,11]
[366844355,1750505438593,-1000.0,0.00024521,2]
[366844356,1750505438602,-1000.0,0.00024521,2]
[366844357,1750505438615,-1200.0,0.00024521,2]
[366844358,1750505438626,-186.82923384,0.000246,2]
[366844359,1750505438636,-200.84306079,0.000246,11]
[366844360,1750505438645,-500.0,0.00024673,2]
[366844361,1750505438655,-500.0,0.00024673,2]
[366844362,1750505438664,-500.0,0.00024673,2]
[366844363,1750505438674,-39735.7125803,0.0002468,2]
[366844364,1750505438684,-2110.47252282,0.0002468,2]
[366844365,1750505438693,-207.4,0.00024685,2]
[366844366,1750505438703,-548.64792253,0.0002469,10]
[366844367,1750505438713,-30738.03060879,0.00024692,7]
[366844368,1750505438723,-424.93363889,0.00024692,7]
[366844369,1750505438732,-160.0,0.00024698,3]
[366844370,1750505438742,-166.79744706,0.00024698,5]
[366844371,1750505438752,-15223.87255265,0.000247,2]
[366844372,1750505438762,-39955.72927545,0.000247,2]
[366844373,1750505438771,-679.19,0.000247,7]
[366844374,1750505438781,-59475.08,0.000247,2]
[366844375,1750505438790,-2654.72,0.000247,7]
[366844376,1750505438800,-186.82923384,0.000247,2]
[366844377,1750505438809,-200.84306079,0.000247,11]
[366844378,1750505438819,-5000.0,0.00024702,2]
[366844379,1750505438828,-5000.0,0.00024702,2]
[366844380,1750505438838,-5000.0,0.00024702,2]
[366844381,1750505438847,-5000.0,0.00024702,2]
[366844382,1750505438857,-5000.0,0.00024702,2]
[366844383,1750505438867,-383.0,0.00024706,3]
[366844384,1750505438876,-12893.98247969,0.00024774,2]
[366844385,1750505438886,-500.0,0.000248,2]
[366844386,1750505438896,-232.18,0.000248,31]
[366844387,1750505438905,-232.18,0.000248,31]
[366844388,1750505438913,-232.18,0.000248,31]
[366844389,1750505438922,-232.18,0.000248,31]
[366844390,1750505438931,-232.18,0.000248,31]
[366844391,1750505438941,-232.18,0.000248,31]
[366844392,1750505438951,-232.18,0.000248,31]
[366844393,1750505438960,-232.18,0.000248,31]
[366844394,1750505438969,-232.18,0.000248,31]
[366844395,1750505438979,-232.18,0.000248,31]
[366844396,1750505438989,-232.18,0.000248,31]
[366844398,1750505438998,-232.18,0.000248,31]
[366844400,1750505439007,-232.18,0.000248,31]
[366844401,1750505439016,-232.18,0.000248,31]
[366844402,1750505439026,-232.18,0.000248,31]
[366844403,1750505439035,-232.18,0.000248,31]
[366844404,1750505439044,-5890.34346558,0.000248,2]
[366844405,1750505439054,-186.82923384,0.000248,2]
[366844406,1750505439063,-200.84306079,0.000248,11]
[366844407,1750505439072,-150.0,0.00024873,2]
[366844408,1750505439082,-500.0,0.00024873,2]
[366844409,1750505439091,-500.0,0.00024873,2]
[366844410,1750505439100,-500.0,0.00024873,2]
[366844411,1750505439110,-500.0,0.00024873,2]
[366844412,1750505439120,-500.0,0.00024873,2]
[366844413,1750505439129,-162.55,0.0002489,10]
[366844414,1750505439139,-10939.2092932,0.0002489,2]
[366844415,1750505439149,-428035.60606899,0.000249,2]
[366844417,1750505439162,-40498.68328259,0.000249,2]
[366844419,1750505439173,-1688.35863592,0.000249,2]
[366844488,1750505441846,-26609.2382376,0.000249,2]
[366844489,1750505441885,-5497.66847041,0.000249,2]
[366844490,1750505441896,-572.325,0.000249,2]
[366844491,1750505441909,-542.5716455,0.000249,2]
[366844502,1750505443668,-16600.0,0.000249,2]
[366844515,1750505446364,-3362.69211979,0.000249,2]
[366844518,1750505446377,-31355.16942502,0.000249,2]
[366844528,1750505446470,-324.65567513,0.000249,2]
[366844546,1750505446627,-0.08284757,0.000249,2]
[366844922,1750505819165,-492.0,0.0002,7]
[366844923,1750505888118,-4100.0,0.000198,2]
[366844924,1750505957917,-900.0,0.000198,2]
[366844925,1750505957940,-187.0,0.000199,2]
[366844927,1750506022126,-3142.0,0.00019701,2]
[366844928,1750506092626,-1182.0,0.00019701,2]
[366844929,1750506095923,658.8327427,0.00022922,120]
[366844930,1750506134867,1002.0,0.00024657,120]
[366844931,1750506161139,-4700.0,0.000198,2]
[366844933,1750506343214,-254.21569769,0.00019602,2]
[366844934,1750506356895,-4707.0,0.00019602,2]
[366844935,1750506454083,-38.78430231,0.00019602,2]
[366844936,1750506454104,-63.1737096,0.0002,7]
[366844937,1750506454129,-250.0,0.00021775,2]
[366844938,1750506454151,-152.15731699,0.0002285,2]
[366844939,1750506454172,-152.15731697,0.00022878,2]
[366844940,1750506454195,-152.15731697,0.00022906,2]
[366844941,1750506454216,-152.15731697,0.00022933,2]
[366844942,1750506454238,-230.10342898,0.00022934,2]
[366844943,1750506454259,-460.0,0.0002295,2]
[366844944,1750506454282,-236.58964191,0.00022961,2]
[366844945,1750506454304,-152.15731697,0.00022961,2]
[366844946,1750506454325,-1103.42350401,0.00022981,2]
[366844947,1750506483868,-3000.0,0.00019406,2]
[366844949,1750506512076,163.3615538,0.00013699,2]
[366844950,1750506558140,-1922.43603878,0.00019406,2]
[366844951,1750506574075,-77.56396122,0.00019406,2]
[366844959,1750506632793,-230.10342898,0.00022266,2]
[366844960,1750506632803,-4026.75552831,0.00022751,2]
[366844961,1750506632814,-1760.12789081,0.00022969,2]
[366844962,1750506632825,-1688.0,0.00022969,2]
[366844963,1750506632835,-207.4,0.00022969,2]
[366844964,1750506632845,-151.0,0.00022969,2]
[366844965,1750506632856,-500.0,0.00022969,2]
[366844966,1750506632867,-151.0,0.00022969,2]
[366844967,1750506632877,-500.0,0.00022969,2]
[366844968,1750506632888,-500.0,0.00022969,2]
[366844969,1750506632899,-151.0,0.00022969,2]
[366844970,1750506632909,-591.10451232,0.00022969,2]
[366844971,1750506632920,-151.0,0.00022969,2]
[366844972,1750506632930,-151.0,0.00022969,2]
[366844973,1750506632940,-270.38666451,0.00022969,2]
[366844974,1750506632950,-300.0,0.00022981,2]
[366844975,1750506632960,-300.0,0.00022981,2]
[366844976,1750506632971,-583.0,0.00022981,2]
[366844977,1750506632980,-500.0,0.00022982,2]
[366844978,1750506632990,-500.0,0.00022982,2]
[366844979,1750506633001,-500.0,0.00022982,2]
[366844980,1750506633012,-500.0,0.00022982,2]
[366844981,1750506633022,-500.0,0.00022982,2]
[366844982,1750506633033,-500.0,0.00022982,2]
[366844983,1750506633044,-500.0,0.00022982,2]
[366844984,1750506633055,-233.06426364,0.00022982,2]
[366844985,1750506633066,-195.496,0.00022982,2]
[366844986,1750506633077,-24900.0,0.00022983,2]
[366844987,1750506633088,-250.0,0.00023061,2]
[366844988,1750506633098,-1005.62755928,0.00023233,2]
[366844989,1750506633108,-4563.92,0.00023234,2]
[366844990,1750506633118,-160.0,0.00023251,2]
[366844991,1750506633128,-500.0,0.0002358,2]
[366844992,1750506633139,-165.762903,0.0002358,2]
[366844993,1750506633151,-500.0,0.00023646,2]
[366844994,1750506633162,-500.0,0.00023689,2]
[366844995,1750506633172,-276.78324483,0.000239,10]
[366844996,1750506633184,-276.78324472,0.00023969,10]
[366844997,1750506633195,-568.48609367,0.00023988,2]
[366844999,1750506633208,-568.48609367,0.00023988,2]
[366845002,1750506633220,-568.48609367,0.00023988,2]
[366845004,1750506633231,-568.48609367,0.00023988,2]
[366845006,1750506633243,-833.77960404,0.00023988,2]
[366845008,1750506633254,-150.0,0.00024,2]
[366845010,1750506633265,-263.38158156,0.00024,2]
[366845012,1750506633276,-4233.0240712,0.00024,14]
[366845014,1750506633288,-523.9660634,0.00024,3]
[366845016,1750506633300,-523.9660634,0.00024,3]
[366845018,1750506633311,-276.78324472,0.00024038,10]
[366845020,1750506633323,-276.78324472,0.00024107,10]
[366845023,1750506633334,-965.0,0.00024125,2]
[366845025,1750506633345,-406.0,0.00024125,2]
[366845027,1750506633356,-1000.0,0.00024128,2]
[366845029,1750506633368,-276.78324472,0.00024176,10]
[366845031,1750506633379,-168.0,0.00024192,2]
[366845033,1750506633389,-276.78324472,0.00024245,10]
[366845035,1750506633399,-20.492802,0.00024299,2]
[366845038,1750506633413,-318.407198,0.00024299,2]
[366845040,1750506633424,-2000.0,0.000243,2]
[366845042,1750506633434,-276.78324472,0.00024314,10]
[366845044,1750506633444,-215.0738,0.00024338,2]
[366845046,1750506633455,-276.78324472,0.00024383,11]
[366845048,1750506633466,-241.790353,0.00024401,4]
[366845050,1750506633478,-276.78324472,0.00024452,11]
[366845052,1750506633491,-276.78324472,0.00024521,11]
[366845055,1750506633509,-276.78324472,0.0002459,11]
[366845057,1750506633520,-380.0,0.00024658,2]
[366845059,1750506633531,-448.50513511,0.00024658,2]
[366845061,1750506633542,-276.78324472,0.00024659,11]
[366845063,1750506633553,-500.0,0.00024699,30]
[366845065,1750506633562,-160.0,0.00024699,2]
[366845067,1750506633572,-200.0,0.0002472,11]
[366845069,1750506633583,-276.78324472,0.00024728,11]
[366845071,1750506633594,-200.0,0.00024732,120]
[366845073,1750506633605,-276.78324472,0.00024797,11]
[366845076,1750506633616,-110.0023952,0.000248,31]
[366845228,1750506638398,-500.0,0.00023987,2]
[366845229,1750506638408,-387.01488183,0.00023987,2]
[366845230,1750506638418,-500.0,0.00023987,2]
[366845231,1750506638428,-500.0,0.00023987,2]
[366845232,1750506638438,-500.0,0.00023987,2]
[366845233,1750506638448,-500.0,0.00023987,2]
[366845234,1750506638458,-500.0,0.00023987,2]
[366845235,1750506638467,-500.0,0.00023987,2]
[366845236,1750506638477,-500.0,0.00023987,2]
[366845237,1750506638486,-500.0,0.00023987,2]
[366845238,1750506638496,-500.0,0.00023987,2]
[366845239,1750506638505,-500.0,0.00023987,2]
[366845240,1750506638515,-45.81899471,0.00023987,2]
[366845241,1750506638661,-454.18100529,0.00023987,2]